bitfinex/quotes_BTCUSD_20250118
["timestamp","ask_amount","ask_price","bid_price","bid_amount"]
[1737188250792,0.63617261,102600.0,102590.0,0.00089796]
[1737188250984,0.63617261,102600.0,102590.0,0.09837296]
[1737188251184,0.63617261,102600.0,102590.0,0.00089796]
[1737188251399,0.55917261,102600.0,102590.0,0.00089796]
[1737188252186,0.60917261,102600.0,102590.0,0.00089796]
[1737188255150,0.71879434,102600.0,102590.0,0.00089796]
[1737188256318,0.72896401,102600.0,102590.0,0.00089796]
[1737188256567,0.72896401,102600.0,102560.0,0.487487]
[1737188256568,0.2271,102570.0,102560.0,0.292491]
[1737188256769,0.32634081,102570.0,102560.0,0.292491]
[1737188257730,0.1271,102570.0,102560.0,0.292491]
[1737188257930,0.32755963,102570.0,102560.0,0.292491]
[1737188258085,0.32634081,102570.0,102560.0,0.292491]
[1737188261126,0.22634081,102570.0,102560.0,0.292491]
[1737188261362,0.32634081,102570.0,102560.0,0.292491]
[1737188261597,0.0773,102570.0,102560.0,0.292491]
[1737188262203,0.0785188,102570.0,102560.0,0.292491]
[1737188264017,0.0773,102570.0,102560.0,0.292491]
[1737188264194,0.07851883,102570.0,102560.0,0.292491]
[1737188265194,0.27775964,102570.0,102560.0,0.292491]
[1737188265423,0.43136254,102570.0,102560.0,0.292491]
[1737188265596,0.53136254,102570.0,102560.0,0.292491]
[1737188265796,0.42174081,102570.0,102560.0,0.292491]
[1737188269377,0.42174081,102570.0,102560.0,0.29338896]
[1737188272165,0.62885654,102570.0,102560.0,0.29338896]
[1737188272544,0.53136254,102570.0,102560.0,0.29338896]
[1737188272901,0.62885654,102570.0,102560.0,0.09839396]
[1737188273101,0.55185654,102570.0,102560.0,0.00089796]
[1737188273311,0.55185654,102570.0,102560.0,0.09840096]
[1737188274407,0.45436254,102570.0,102560.0,0.09840096]
[1737188275021,0.58185654,102570.0,102560.0,0.09840096]
[1737188275687,0.46136254,102570.0,102560.0,0.09840096]
[1737188276052,0.52885654,102570.0,102560.0,0.09840096]
[1737188276689,0.52885654,102570.0,102560.0,0.00089796]
[1737188277157,0.52885654,102570.0,102560.0,0.09840096]
[1737188277595,0.43136254,102570.0,102560.0,0.09840096]
[1737188277753,0.52885654,102570.0,102560.0,0.09840096]
[1737188279176,0.52885654,102570.0,102560.0,0.00089796]
[1737188279384,0.71147827,102570.0,102560.0,0.00089796]
[1737188280537,0.2265,102540.0,102530.0,0.29347959]
[1737188280738,0.43536254,102540.0,102530.0,0.29347959]
[1737188280961,0.32574081,102540.0,102530.0,0.29347959]
[1737188281310,0.42574081,102540.0,102530.0,0.29347959]
[1737188281503,0.63288454,102540.0,102530.0,0.00089859]
[1737188281707,0.58288454,102540.0,102530.0,0.00098733]
[1737188281950,0.71550627,102540.0,102530.0,0.00098733]
[1737188283604,0.60588454,102540.0,102530.0,0.00098733]
[1737188283810,0.72671913,102540.0,102530.0,0.00098733]
[1737188284122,0.73689436,102540.0,102530.0,0.00098733]
[1737188286556,1.12562539,102540.0,102530.0,0.00098733]
[1737188287201,0.324051,102510.0,102500.0,1.25]
[1737188287402,0.71553527,102510.0,102500.0,1.2505071]
[1737188287605,0.60591354,102510.0,102500.0,1.2505071]
[1737188288368,0.71553527,102510.0,102500.0,1.2505071]
[1737188291015,0.72631154,102510.0,102500.0,1.2505071]
[1737188293376,0.72631154,102510.0,102500.0,1.25140527]
[1737188293971,0.61668981,102510.0,102500.0,1.25140527]
[1737188294715,0.65591354,102510.0,102500.0,1.34896527]
[1737188294939,0.43291354,102510.0,102500.0,1.34896527]
[1737188295143,0.37699181,102510.0,102500.0,1.34896527]
[1737188295356,0.48661354,102510.0,102500.0,1.25140527]
[1737188295571,0.69143527,102510.0,102500.0,1.25140527]
[1737188295751,0.71443527,102510.0,102500.0,1.25140527]
[1737188296178,0.60481354,102510.0,102500.0,1.25140527]
[1737188296872,0.71443527,102510.0,102500.0,1.25140527]
[1737188297072,0.60481354,102510.0,102500.0,1.25140527]
[1737188297394,0.43181354,102510.0,102500.0,1.25140527]
[1737188297597,0.48661354,102510.0,102500.0,1.25140527]
[1737188297820,0.38661354,102510.0,102500.0,1.25140527]
[1737188298025,0.66923527,102510.0,102500.0,1.25140527]
[1737188298297,0.56443527,102510.0,102500.0,1.25140527]
[1737188298498,0.71443527,102510.0,102500.0,1.25140527]
[1737188299989,0.63481354,102510.0,102500.0,1.25140527]
[1737188300185,0.74443527,102510.0,102500.0,1.25140527]
[1737188306294,0.78344727,102510.0,102500.0,1.25140527]
[1737188307315,0.74443527,102510.0,102500.0,1.25140527]
[1737188307961,0.63481354,102510.0,102500.0,1.25140527]
[1737188308257,0.74443527,102510.0,102500.0,1.25140527]
[1737188308473,0.63481354,102510.0,102500.0,1.25140527]
[1737188308693,0.48481354,102510.0,102500.0,1.25140527]
[1737188309522,0.59443527,102510.0,102500.0,1.25140527]
[1737188309852,0.74443527,102510.0,102500.0,1.25140527]
[1737188315080,0.84367608,102510.0,102500.0,1.25140527]
[1737188315306,0.74443527,102510.0,102500.0,1.25140527]
[1737188319705,0.63481354,102510.0,102500.0,1.25140527]
[1737188319930,0.74443527,102510.0,102500.0,1.25140527]
[1737188322964,1.1331663,102510.0,102500.0,1.25140527]
[1737188323161,1.23240711,102510.0,102500.0,1.25140527]
[1737188323379,1.33500711,102510.0,102500.0,1.25140527]
[1737188323622,1.23240711,102510.0,102500.0,1.25140527]
[1737188323812,1.1331663,102510.0,102500.0,1.25140527]
[1737188324400,1.26452925,102510.0,102500.0,1.25140527]
[1737188325158,1.13452726,102510.0,102500.0,1.25140527]
[1737188326364,1.16035802,102510.0,102500.0,1.19253598]
[1737188326485,1.25959883,102510.0,102500.0,1.18243009]
[1737188326696,1.61331645,102510.0,102500.0,1.18243009]
[1737188328045,1.16427851,102510.0,102500.0,1.18243009]
[1737188328419,1.16427851,102510.0,102500.0,1.01455271]
[1737188328621,1.16427851,102510.0,102500.0,0.26556988]
[1737188328827,1.71591645,102510.0,102500.0,0.07067888]
[1737188329041,0.24758,102480.0,102470.0,0.0004278]
[1737188329233,0.24758,102480.0,102470.0,0.00047843]
[1737188329234,0.77775327,102480.0,102470.0,0.00047843]
[1737188330864,1.03862242,102480.0,102470.0,0.00047843]
[1737188332294,0.77775327,102480.0,102470.0,0.00047843]
[1737188333379,0.9949746,102480.0,102470.0,0.00047843]
[1737188334509,1.16873622,102480.0,102470.0,0.00047843]
[1737188335914,1.19875558,102480.0,102470.0,0.00047843]
[1737188336160,1.03159396,102480.0,102470.0,0.00047843]
[1737188337072,1.07445562,102480.0,102470.0,0.00047843]
[1737188337221,1.0529067,102480.0,102470.0,4.3e-07]
[1737188337428,1.03159396,102480.0,102470.0,4.3e-07]
[1737188337803,0.81437263,102480.0,102470.0,4.3e-07]
[1737188338008,0.81437263,102480.0,102440.0,0.00129775]
[1737188338009,0.15,102450.0,102440.0,0.00129775]
[1737188338227,0.70984327,102450.0,102440.0,0.0014463]
[1737188338430,0.70862257,102450.0,102440.0,0.0014463]
[1737188339261,0.76332257,102450.0,102440.0,0.0014463]
[1737188339469,0.76332257,102450.0,102440.0,3e-07]
[1737188340544,1.02419172,102450.0,102440.0,3e-07]
[1737188340966,0.46687046,102430.0,102420.0,0.000428]
[1737188341168,0.73326842,102430.0,102420.0,0.00052702]
[1737188341404,0.81346842,102430.0,102420.0,0.00052702]
[1737188342030,0.84346842,102430.0,102420.0,0.00052702]
[1737188342885,1.05978278,102430.0,102420.0,0.00052702]
[1737188343089,0.95016105,102430.0,102420.0,0.00052702]
[1737188344215,0.82037243,102430.0,102420.0,0.00052702]
[1737188344424,0.77227243,102430.0,102420.0,0.00052702]
[1737188344643,0.31339355,102430.0,102420.0,0.00052702]
[1737188344848,0.3242114,102430.0,102420.0,0.00052702]
[1737188345055,0.45683313,102430.0,102420.0,0.00052702]
[1737188345480,0.45948954,102430.0,102420.0,0.00052702]
[1737188345679,0.32686781,102430.0,102420.0,0.00052702]
[1737188345888,0.12924081,102430.0,102410.0,0.316984]
[1737188346095,0.13,102430.0,102420.0,0.173037]
[1737188346504,0.15184756,102430.0,102420.0,0.0754]
[1737188346715,0.34289594,102430.0,102420.0,0.0754]
[1737188346889,0.36024873,102430.0,102420.0,0.0754]
[1737188347271,0.26024873,102430.0,102420.0,0.0754]
[1737188347471,0.297637,102420.0,102410.0,0.04680766]
[1737188347675,0.30649954,102420.0,102410.0,0.00050766]
[1737188347890,0.19687781,102420.0,102410.0,0.00050766]
[1737188348093,0.19809859,102420.0,102410.0,0.00050766]
[1737188348478,0.30772032,102420.0,102410.0,0.00050766]
[1737188348687,0.30649954,102420.0,102410.0,0.00050766]
[1737188348886,0.29687781,102420.0,102410.0,0.00050766]
[1737188349252,0.19687781,102420.0,102410.0,0.00050766]
[1737188349437,0.29687781,102420.0,102410.0,0.00050766]
[1737188349803,0.39687781,102420.0,102410.0,0.00050766]
[1737188350350,0.29687781,102420.0,102410.0,0.00050766]
[1737188352773,0.19687781,102420.0,102410.0,0.09815366]
[1737188352999,0.29687781,102420.0,102410.0,0.09858176]
[1737188353204,0.06924081,102420.0,102410.0,0.09858176]
[1737188353826,0.17046144,102420.0,102410.0,0.09858176]
[1737188354255,0.26809844,102420.0,102410.0,0.09858176]
[1737188354465,0.36687781,102420.0,102410.0,0.00093576]
[1737188354666,0.36687781,102420.0,102410.0,0.09858176]
[1737188354894,0.36687781,102420.0,102410.0,0.00398641]
[1737188355336,0.56215681,102420.0,102410.0,0.097646]
[1737188355539,0.06854997,102410.0,102400.0,0.43758841]
[1737188355740,0.10046153,102410.0,102400.0,0.34481646]
[1737188356859,0.09924081,102410.0,102400.0,0.34481646]
[1737188357193,0.3268,102420.0,102410.0,0.097646]
[1737188357381,0.42604081,102420.0,102410.0,0.097646]
[1737188358526,0.42604081,102420.0,102410.0,0.178446]
[1737188358929,0.42604081,102420.0,102410.0,0.33616773]
[1737188359317,0.42456081,102420.0,102410.0,0.226546]
[1737188359535,0.32532,102420.0,102410.0,0.33616773]
[1737188359739,0.32532,102420.0,102410.0,0.34104878]
[1737188359939,0.32532,102420.0,102410.0,0.23142705]
[1737188360142,0.42456081,102420.0,102410.0,0.23142705]
[1737188361391,0.32532,102420.0,102410.0,0.23142705]
[1737188362701,0.32532,102420.0,102410.0,0.226546]
[1737188364977,0.32621943,102420.0,102410.0,0.226546]
[1737188365161,0.32621943,102420.0,102410.0,0.33616773]
[1737188365762,0.32621943,102420.0,102410.0,0.48616773]
[1737188366662,0.3947694,102420.0,102410.0,0.48616773]
[1737188366974,0.32621943,102420.0,102410.0,0.48616773]
[1737188367195,0.3947694,102420.0,102410.0,0.48616773]
[1737188367612,0.32621943,102420.0,102410.0,0.48616773]
[1737188367957,0.00089943,102420.0,102410.0,0.48921759]
[1737188368541,0.00089943,102420.0,102410.0,0.37959586]
[1737188369406,0.00089943,102420.0,102410.0,0.28194986]
[1737188369785,0.00089943,102420.0,102410.0,0.37959586]
[1737188370586,0.10014024,102420.0,102410.0,0.22959586]
[1737188373101,0.00089943,102420.0,102410.0,0.33921759]
[1737188373342,0.00089943,102420.0,102410.0,0.22959586]
[1737188375067,0.10014024,102420.0,102410.0,0.22959586]
[1737188375509,0.10136083,102420.0,102410.0,0.10069586]
[1737188376683,0.19899783,102420.0,102410.0,0.10112406]
[1737188377105,0.29899783,102420.0,102410.0,0.00347806]
[1737188377310,0.29777724,102420.0,102410.0,0.00347806]
[1737188377512,0.39777724,102420.0,102410.0,0.00347806]
[1737188380209,0.39777724,102420.0,102410.0,0.00835908]
[1737188381276,0.48430298,102420.0,102410.0,0.00835908]
[1737188381502,0.48430298,102420.0,102410.0,0.00347806]
[1737188382341,0.28666598,102420.0,102410.0,0.10112406]
[1737188383122,0.18666598,102420.0,102410.0,0.17772406]
[1737188383349,0.18666598,102420.0,102410.0,0.33404579]
[1737188383544,0.00089943,102420.0,102410.0,0.33404579]
[1737188388060,0.00089943,102420.0,102410.0,0.22442406]
[1737188388477,0.00089943,102420.0,102410.0,0.22485226]
[1737188391082,0.00089943,102420.0,102410.0,0.33447399]
[1737188391267,0.00089943,102420.0,102410.0,0.22485226]
[1737188391475,0.19777724,102420.0,102410.0,0.09525226]
[1737188392007,0.10014024,102420.0,102410.0,0.09525226]
[1737188394058,0.00089943,102420.0,102410.0,0.17545226]
[1737188394270,0.00212004,102420.0,102410.0,0.17545226]
[1737188394466,0.00089943,102420.0,102410.0,0.28507399]
[1737188394678,0.00089943,102420.0,102410.0,0.33157399]
[1737188395237,0.00089943,102420.0,102410.0,0.48157399]
[1737188395822,0.00089943,102420.0,102410.0,0.48813399]
[1737188396029,0.0694494,102420.0,102410.0,0.48813399]
[1737188396465,0.0694494,102420.0,102410.0,0.48157399]
[1737188396668,0.0694494,102420.0,102410.0,0.48813399]
[1737188398034,0.0694494,102420.0,102410.0,0.70701647]
[1737188399018,0.0694494,102420.0,102410.0,0.57568698]
[1737188399633,0.0694494,102420.0,102410.0,0.58610697]
[1737188399977,0.0694494,102420.0,102410.0,0.57954697]
[1737188400180,0.00089943,102420.0,102410.0,0.46992524]
[1737188400890,0.10136077,102420.0,102410.0,0.33280525]
[1737188401053,0.10136077,102420.0,102410.0,0.18280525]
[1737188401222,0.27409783,102420.0,102410.0,0.09525226]
[1737188401441,0.27287724,102420.0,102410.0,0.09438603]
[1737188401680,0.27287724,102420.0,102410.0,0.0004282]
[1737188401976,0.48249897,102420.0,102410.0,0.0004282]
[1737188402186,0.47287724,102420.0,102410.0,0.0004282]
[1737188402469,0.63179897,102420.0,102410.0,0.0004282]
[1737188402716,0.52217724,102420.0,102410.0,0.0004282]
[1737188403098,0.52217724,102420.0,102410.0,0.00530902]
[1737188403662,0.7384916,102420.0,102410.0,0.00530902]
[1737188404356,0.84811333,102420.0,102410.0,0.00530902]
[1737188405166,0.84811333,102420.0,102410.0,0.0004282]
[1737188405566,0.7384916,102420.0,102410.0,0.0004282]
[1737188406367,0.56460609,102420.0,102410.0,0.0004282]
[1737188406612,0.39026528,102420.0,102410.0,0.35769593]
[1737188406875,0.45881525,102420.0,102410.0,0.35769593]
[1737188407122,0.45881525,102420.0,102410.0,0.43789593]
[1737188407356,0.0694494,102420.0,102410.0,0.43789593]
[1737188407757,0.00089943,102420.0,102410.0,0.3282742]
[1737188408000,0.10136071,102420.0,102410.0,0.2480742]
[1737188408403,0.10136071,102420.0,102410.0,0.0980742]
[1737188408946,0.19899771,102420.0,102410.0,0.0004282]
[1737188409154,0.40861944,102420.0,102410.0,0.0004282]
[1737188409374,0.40739897,102420.0,102410.0,0.0004282]
[1737188410261,0.29777724,102420.0,102410.0,0.0004282]
[1737188410613,0.38430298,102420.0,102410.0,0.0004282]
[1737188410813,0.38430298,102420.0,102410.0,0.0980742]
[1737188410814,0.18666598,102420.0,102410.0,0.0980742]
[1737188411631,0.10014024,102420.0,102410.0,0.0980742]
[1737188411764,0.13014024,102420.0,102410.0,0.0980742]
[1737188412391,0.03089943,102420.0,102410.0,0.0980742]
[1737188412878,0.03211995,102420.0,102410.0,0.0980742]
[1737188413111,0.13136076,102420.0,102410.0,0.0980742]
[1737188413327,0.22899776,102420.0,102410.0,0.0980742]
[1737188413521,0.43739897,102420.0,102410.0,0.0004282]
[1737188413744,0.61523978,102420.0,102410.0,0.0004282]
[1737188413950,0.51599897,102420.0,102410.0,0.0004282]
[1737188414292,0.73839897,102420.0,102410.0,0.0004282]
[1737188414489,0.7480207,102420.0,102410.0,0.0004282]
[1737188414930,0.63839897,102420.0,102410.0,0.0004282]
[1737188415119,1.12700563,102420.0,102410.0,0.0004282]
[1737188415934,1.02776482,102420.0,102410.0,0.0004282]
[1737188416340,0.89926812,102420.0,102410.0,0.0004282]
[1737188418577,0.32118076,102410.0,102400.0,0.0004283]
[1737188418742,0.5300433,102410.0,102400.0,0.00058056]
[1737188419226,0.5086433,102410.0,102400.0,0.00058056]
[1737188419997,1.04239156,102410.0,102400.0,0.00058056]
[1737188420198,1.02994161,102410.0,102400.0,0.00058056]
[1737188421128,0.98672008,102410.0,102400.0,0.00058056]
[1737188422386,1.00658873,102410.0,102400.0,0.00058056]
[1737188423061,0.74571958,102410.0,102400.0,0.00058056]
[1737188424358,0.52851195,102410.0,102400.0,0.00058056]
[1737188424686,0.58003442,102410.0,102400.0,0.00058056]
[1737188425985,0.63003442,102410.0,102400.0,0.00058056]
[1737188427374,1.062265,102390.0,102380.0,0.00305134]
[1737188427575,1.35062754,102390.0,102380.0,0.00305134]
[1737188428624,0.96384081,102390.0,102380.0,0.10072634]
[1737188428803,0.96384081,102390.0,102380.0,0.18392634]
[1737188428942,1.07346254,102390.0,102380.0,0.18392634]
[1737188429811,1.07346254,102390.0,102380.0,0.00305134]
[1737188429812,1.17112754,102390.0,102380.0,0.00305134]
[1737188430017,1.17112754,102390.0,102380.0,0.10072634]
[1737188430366,1.17112754,102390.0,102380.0,0.00305134]
[1737188430626,1.27112754,102390.0,102380.0,0.00305134]
[1737188430967,0.06854997,102380.0,102370.0,0.2934606]
[1737188431174,0.16779078,102380.0,102370.0,0.29361293]
[1737188431596,0.27741251,102380.0,102370.0,0.29361293]
[1737188431799,0.20886254,102380.0,102370.0,0.29361293]
[1737188432019,0.21809956,102380.0,102370.0,0.29361293]
[1737188432196,0.21687848,102380.0,102370.0,0.29361293]
[1737188432619,0.31455348,102380.0,102370.0,0.09825693]
[1737188432797,0.31455348,102380.0,102370.0,0.00057993]
[1737188433201,0.31455348,102380.0,102370.0,0.1013154]
[1737188433709,0.64135348,102380.0,102370.0,0.0036314]
[1737188434076,0.74135348,102380.0,102370.0,0.0036314]
[1737188434450,0.82235348,102380.0,102370.0,0.0036314]
[1737188434825,0.82235348,102380.0,102370.0,0.00057993]
[1737188435593,0.49555348,102380.0,102370.0,0.00057993]
[1737188436500,0.49555348,102380.0,102370.0,0.09826393]
[1737188436693,0.21687848,102380.0,102370.0,0.09826393]
[1737188438040,0.21687848,102380.0,102370.0,0.10131558]
[1737188438281,0.31455348,102380.0,102370.0,0.10131558]
[1737188438482,0.31455348,102380.0,102370.0,0.00363158]
[1737188438483,0.49555348,102380.0,102370.0,0.00363158]
[1737188439150,0.59555348,102380.0,102370.0,0.00363158]
[1737188439679,0.59555348,102380.0,102370.0,0.00057993]
[1737188441705,0.21687848,102380.0,102370.0,0.09826393]
[1737188441914,0.10725675,102380.0,102370.0,0.09826393]
[1737188442122,0.31809956,102380.0,102370.0,0.09826393]
[1737188442463,0.41455348,102380.0,102370.0,0.00057993]
[1737188443027,0.41455348,102380.0,102370.0,0.00363176]
[1737188443647,0.41455348,102380.0,102370.0,0.10131576]
[1737188444484,0.41455348,102380.0,102370.0,0.00363176]
[1737188444842,0.51455348,102380.0,102370.0,0.00363176]
[1737188445290,0.59155348,102380.0,102370.0,0.00363176]
[1737188446972,0.59155348,102380.0,102370.0,0.00057993]
[1737188453460,0.67812596,102380.0,102370.0,0.00057993]
[1737188454997,0.77736677,102380.0,102370.0,0.00057993]
[1737188455841,0.67812596,102380.0,102370.0,0.00057993]
[1737188456026,0.83798468,102380.0,102370.0,0.00057993]
[1737188457209,1.01112964,102380.0,102370.0,0.00057993]
[1737188459511,1.22756084,102380.0,102370.0,0.00057993]
[1737188460555,1.01112964,102380.0,102370.0,0.00057993]
[1737188460760,1.11037045,102380.0,102370.0,0.00057993]
[1737188460981,1.01112964,102380.0,102370.0,0.00057993]
[1737188462043,0.92070212,102380.0,102370.0,0.00057993]
[1737188462243,0.92070212,102380.0,102370.0,0.17776393]
[1737188462244,0.71340539,102380.0,102370.0,0.17776393]
[1737188462420,0.82302712,102380.0,102370.0,0.17776393]
[1737188463164,0.56393636,102380.0,102370.0,0.17776393]
[1737188463586,0.66161136,102380.0,102370.0,0.00057993]
[1737188463789,0.66161136,102380.0,102370.0,0.00363172]
[1737188464244,0.84011136,102380.0,102370.0,0.00363172]
[1737188464444,0.70987663,102380.0,102370.0,0.00363172]
[1737188465169,0.70987663,102380.0,102370.0,0.00057993]
[1737188465470,0.83948468,102380.0,102370.0,0.00057993]
[1737188467390,1.09920212,102380.0,102370.0,0.00057993]
[1737188468532,0.83948468,102380.0,102370.0,0.00057993]
[1737188468941,0.66098468,102380.0,102370.0,0.00057993]
[1737188470357,0.96508803,102380.0,102370.0,0.00057993]
[1737188471854,1.06508803,102380.0,102370.0,0.00057993]
[1737188472372,0.76098468,102380.0,102370.0,0.00057993]
[1737188472851,0.77098468,102380.0,102370.0,0.00057993]
[1737188473340,1.03070212,102380.0,102370.0,0.00057993]
[1737188475425,0.94481012,102380.0,102370.0,0.00057993]
[1737188475626,0.74481012,102380.0,102370.0,0.00057993]
[1737188475931,0.84481012,102380.0,102370.0,0.00057993]
[1737188476366,0.74481012,102380.0,102370.0,0.00057993]
[1737188476906,0.84481012,102380.0,102370.0,0.00057993]
[1737188478585,0.97522172,102380.0,102370.0,0.00057993]
[1737188479392,0.87522172,102380.0,102370.0,0.00057993]
[1737188479629,0.97522172,102380.0,102370.0,0.00057993]
[1737188479785,1.07522172,102380.0,102370.0,0.00057993]
[1737188481135,0.81427092,102380.0,102370.0,0.00057993]
[1737188482758,0.91351173,102380.0,102370.0,0.00057993]
[1737188482952,0.81427092,102380.0,102370.0,0.00057993]
[1737188485764,0.10962173,102360.0,102350.0,0.32632083]
[1737188485965,0.20886254,102360.0,102350.0,0.32632083]
[1737188486170,0.21660785,102360.0,102350.0,0.32632083]
[1737188487053,0.10698612,102360.0,102350.0,0.32632083]
[1737188487520,0.19397487,102360.0,102350.0,0.32632083]
[1737188488265,0.19397487,102360.0,102350.0,0.32598856]
[1737188488683,0.26252484,102360.0,102350.0,0.37168856]
[1737188488894,0.16328403,102360.0,102350.0,0.37168856]
[1737188490546,0.07629528,102360.0,102350.0,0.37168856]
[1737188491918,0.07629528,102360.0,102350.0,0.37211626]
[1737188493844,0.00774531,102360.0,102350.0,0.37211626]
[1737188494473,0.00774531,102360.0,102350.0,0.381854]
[1737188496753,0.00774531,102360.0,102350.0,0.354954]
[1737188497654,0.00774531,102360.0,102350.0,0.44229225]
[1737188498461,0.00774531,102360.0,102350.0,0.80115479]
[1737188498651,0.00646205,102360.0,102350.0,1.04326511]
[1737188499053,0.09698875,102380.0,102370.0,0.144284]
[1737188499218,0.09698875,102380.0,102370.0,0.15452258]
[1737188499394,0.09708763,102380.0,102370.0,0.15452258]
[1737188499599,0.09708763,102380.0,102370.0,0.15402174]
[1737188500007,0.27525933,102380.0,102370.0,0.097684]
[1737188500183,0.06854997,102370.0,102360.0,0.542358]
[1737188500523,0.06854997,102370.0,102360.0,1.06638752]
[1737188501402,0.07864885,102380.0,102370.0,0.097684]
[1737188501610,0.07864885,102380.0,102370.0,0.10742174]
[1737188501815,0.07864885,102380.0,102370.0,0.25742174]
[1737188502375,0.08410138,102380.0,102370.0,0.25742174]
[1737188502764,0.06854997,102370.0,102360.0,0.20705078]
[1737188502966,0.07401057,102370.0,102360.0,0.20705078]
[1737188503210,0.07401057,102370.0,102360.0,0.35705078]
[1737188503862,0.07401057,102370.0,102360.0,0.247686]
[1737188505036,0.06854997,102360.0,102350.0,0.43854619]
[1737188505257,0.06854997,102360.0,102350.0,0.11765119]
[1737188505689,0.07399289,102360.0,102350.0,0.11765119]
[1737188505901,0.07399289,102360.0,102350.0,0.25791345]
[1737188506646,0.17168689,102360.0,102350.0,0.01021545]
[1737188506851,0.07399289,102360.0,102350.0,0.0004277]
[1737188507058,0.10313692,102360.0,102350.0,0.0004277]
[1737188507912,0.20237773,102360.0,102350.0,0.0004277]
[1737188509038,0.31322068,102360.0,102350.0,0.0004277]
[1737188509241,0.31199946,102360.0,102350.0,0.0004277]
[1737188510278,0.00544292,102360.0,102350.0,0.2236307]
[1737188510486,0.00544292,102360.0,102350.0,0.3736307]
[1737188511121,0.45999936,102370.0,102350.0,0.2759277]
[1737188511329,0.45999936,102370.0,102360.0,0.097694]
[1737188511531,0.06854997,102370.0,102360.0,0.097694]
[1737188515866,0.06944856,102370.0,102360.0,0.081294]
[1737188516286,0.17907029,102370.0,102360.0,0.081294]
[1737188519563,0.06854997,102360.0,102350.0,0.16045545]
[1737188519772,0.16624397,102360.0,102350.0,0.1504277]
[1737188520027,0.20731573,102360.0,102350.0,0.0004277]
[1737188521893,0.38485654,102360.0,102350.0,0.0004277]
[1737188522068,0.38485654,102360.0,102350.0,0.0981307]
[1737188522280,0.28716254,102360.0,102350.0,0.0981307]
[1737188522837,0.14684997,102360.0,102350.0,0.0981307]
[1737188523028,0.06854997,102360.0,102350.0,0.09863234]
[1737188523225,0.23473731,102370.0,102360.0,0.097694]
[1737188523450,0.15643731,102370.0,102360.0,0.097694]
[1737188524291,0.08788734,102370.0,102360.0,0.324694]
[1737188524612,0.00089859,102370.0,102360.0,0.324694]
[1737188525187,0.00089859,102370.0,102360.0,0.331334]
[1737188527227,0.00089859,102370.0,102360.0,0.43057481]
[1737188527646,0.00089859,102370.0,102360.0,0.87579566]
[1737188527780,0.01099747,102380.0,102370.0,0.63515576]
[1737188528140,0.01099747,102380.0,102370.0,0.76926167]
[1737188528304,0.01099747,102380.0,102370.0,0.78908025]
[1737188528511,0.01099747,102380.0,102370.0,0.75926167]
[1737188528672,0.01099747,102380.0,102370.0,0.73413431]
[1737188529292,0.01099747,102380.0,102370.0,1.12715645]
[1737188530320,0.01099747,102380.0,102370.0,1.97440748]
[1737188532248,0.01099747,102380.0,102370.0,2.06184348]
[1737188533251,0.01099747,102380.0,102370.0,1.93151848]
[1737188533491,0.01099747,102380.0,102370.0,1.84408248]
[1737188533694,0.49799247,102380.0,102370.0,1.84408248]
[1737188533901,0.29541236,102380.0,102370.0,1.30649588]
[1737188534100,0.09493819,102380.0,102370.0,5.97798461]
[1737188534275,0.06760295,102410.0,102400.0,0.40210603]
[1737188534416,0.06760295,102410.0,102400.0,0.62742631]
[1737188534841,0.06760295,102410.0,102400.0,0.51780458]
[1737188535265,0.06760295,102410.0,102400.0,0.62742631]
[1737188536099,0.06760295,102410.0,102400.0,0.51780458]
[1737188536297,0.06770214,102410.0,102400.0,0.51780458]
[1737188536942,0.06770214,102410.0,102400.0,0.49480458]
[1737188537149,0.06770214,102410.0,102400.0,0.39480458]
[1737188537354,0.06770214,102410.0,102400.0,0.49480458]
[1737188537992,0.06770214,102410.0,102400.0,0.36335455]
[1737188538213,0.06770214,102410.0,102400.0,0.39480458]
[1737188538465,0.00063395,102410.0,102400.0,0.49480458]
[1737188538669,0.00063395,102410.0,102400.0,0.38272279]
[1737188538817,0.00063395,102410.0,102400.0,0.51417282]
[1737188539034,0.00063395,102410.0,102400.0,0.28348198]
[1737188539221,0.07663254,102410.0,102400.0,0.38348198]
[1737188539852,0.07663254,102410.0,102400.0,0.28348198]
[1737188540857,0.07663254,102410.0,102400.0,0.29321717]
[1737188541303,0.07663254,102410.0,102400.0,0.28649717]
[1737188541737,0.12363254,102410.0,102400.0,0.12384893]
[1737188542274,0.19218251,102410.0,102400.0,0.11712893]
[1737188542490,0.19218251,102410.0,102400.0,0.26712893]
[1737188543690,0.19218251,102410.0,102400.0,0.25739374]
[1737188543904,0.30180424,102410.0,102400.0,0.10739374]
[1737188544142,0.30180424,102410.0,102400.0,0.097656]
[1737188544395,0.30180424,102410.0,102400.0,0.247656]
[1737188544396,0.19218251,102410.0,102400.0,0.247656]
[1737188544602,0.30180424,102410.0,102400.0,0.247656]
[1737188544997,0.19218251,102410.0,102400.0,0.247656]
[1737188545791,0.06854997,102400.0,102390.0,0.20550319]
[1737188545998,0.3984277,102400.0,102390.0,0.097657]
[1737188546402,0.3007717,102400.0,102390.0,0.097657]
[1737188546612,0.3007717,102400.0,102390.0,0.247657]
[1737188546613,0.19114997,102400.0,102390.0,0.247657]
[1737188548076,0.1226,102400.0,102390.0,0.247657]
[1737188548295,0.19114997,102400.0,102390.0,0.247657]
[1737188550947,0.19114997,102400.0,102390.0,0.2480847]
[1737188551716,0.00153254,102410.0,102390.0,0.1504277]
[1737188551876,0.00153254,102410.0,102400.0,0.09815631]
[1737188552083,0.00153254,102410.0,102400.0,0.31675659]
[1737188552286,0.00153254,102410.0,102400.0,0.19689681]
[1737188552505,0.00153254,102410.0,102400.0,0.097656]
[1737188553099,0.00153254,102410.0,102400.0,0.10739374]
[1737188554063,0.07008251,102410.0,102400.0,0.11730308]
[1737188554290,0.15318251,102410.0,102400.0,0.247656]
[1737188554505,0.20268251,102410.0,102400.0,0.247656]
[1737188557224,0.31230424,102410.0,102400.0,0.247656]
[1737188557441,0.20268251,102410.0,102400.0,0.247656]
[1737188558294,0.06854997,102400.0,102390.0,0.2933997]
[1737188558505,0.34146254,102400.0,102390.0,0.2933997]
[1737188558666,0.34146254,102400.0,102390.0,0.4433997]
[1737188559081,0.20114997,102400.0,102390.0,0.4433997]
[1737188559364,0.1326,102400.0,102390.0,0.4433997]
[1737188561556,0.07008251,102410.0,102400.0,0.247656]
[1737188561557,0.00153254,102410.0,102400.0,0.247656]
[1737188561995,0.00153254,102410.0,102400.0,0.254376]
[1737188562200,0.00153254,102410.0,102400.0,0.37373547]
[1737188562376,0.00153254,102410.0,102400.0,0.57297628]
[1737188562590,0.00153254,102410.0,102400.0,0.60442631]
[1737188563181,0.00153254,102410.0,102400.0,0.49480458]
[1737188564940,0.00153254,102410.0,102400.0,0.46335455]
[1737188565143,0.00153254,102410.0,102400.0,0.26411374]
[1737188565973,0.00153254,102410.0,102400.0,0.28338539]
[1737188567052,0.00153254,102410.0,102400.0,0.25739374]
[1737188567262,0.00153254,102410.0,102400.0,0.26415374]
[1737188567773,0.04923254,102410.0,102400.0,0.26415374]
[1737188568617,0.19938251,102410.0,102400.0,0.26415374]